{"text_format":"1","workbook":"xlsx","n_sheets":8,"sheets":["1. Introdução","2. Scan","3A. Input","3B. Modelação da Recolha","3C. Análise de CB","4. Resultados","5. Pressupostos","Listas"],"not_rendered":{"charts":2,"images":2,"macros":1,"external_links":0,"defined_names":2,"comments":2,"pivot_tables":0},"unopened":[],"bounds":{"document_bytes":16777216,"sheet_cells":100000,"rows_first":2000,"rows_last":500,"rows_between":2000,"halvings":0,"cell_chars":16384,"cell_head_chars":4096},"cells_cut":0,"cells_raw":0,"read":"whole","date_system":"1900"}

{"sheet":"1. Introdução","index":0,"n_rows":10,"n_cols":2,"rows_kept":10,"cut":false,"hidden":false,"merged":[]}
["FERRAMENTA DE VERIFICAÇÃO DO MODELO DE RECOLHA DE BIORRESÍDUOS"]
[]
[null,"INTRODUÇÃO"]
[null,"\nÉ uma autarquia local com intenção de implementar um sistema de recolha seletiva de biorresíduos, mas não sabe quais são as melhores soluções para o seu território e quanto custará?\n\nEsta é uma ferramenta de tomada de decisão concebida para as autoridades locais que pretendem implementar uma solução custo-eficiente para a gestão de biorresíduos, e tem como objetivo ajudar a desenhar a base do sistema que melhor se adequa ao seu contexto territorial e a atingir os seus objetivos de recuperação e valorização da fração alimentar dos biorresíduos.\nEsta ferramenta fornecerá recomendações sobre as soluções de recolha e compostagem local mais eficientes, com base nas informações introduzidas pelo utilizador, e avaliará o seu desempenho de acordo com indicadores operacionais, económicos e ambientais, tais como:\n      . taxa de valorização de resíduos alimentares\n      . equipamento necessário (e.g., número e tipo de contentores)\n      . afetação de recursos (e.g., veículos e mão-de-obra)\n      . indicadores de eficiência da recolha (e.g.,quantidade recolhida por circuito diário; produtividade anual das equipas e veículos de recolha)\n      . estimativas CAPEX e OPEX \n      . emissões de CO2 equivalente\n\nA ferramenta também permite avaliar um cenário comparativo com base nas escolhas do utilizador sobre as opções técnicas para a recuperação e valorização dos resíduos alimentares."]
[]
[null,"INSTRUÇÕES"]
[null,"\nEsta ferramenta é composta por sete folhas, conforme apresentado no diagrama à direita. \nOs utilizadores devem introduzir as informações requeridas nas células azuis, nas folhas \"2.Scan\" e \"3A.Input\", para que os resultados da análise sejam apresentados nas páginas \"3B. Modelação da Recolha\" e \"3C. Análise de CB\". \nO resumo dos principais resultados e os KPI podem ser consultados na página \"4. Resultados\".\nOs valores utilizados por defeito nos parâmetros operacionais e económicos são apresentados na página \"5.Pressupostos\", bem como as respetivas referências, no entanto os utilizadores podem alterá-los de acordo com a sua experiência de forma a aumentar a precisão dos resultados.\n\nAs células azuis representam dados de entrada a serem preenchidos pelo utilizador\nAs células cinzentas representam cálculos intermédios\nAs células verdes representam os resultados finais da análise"]
[]
[null,"AUTORES"]
[null,"\nNORION Consult\nMehlart Consulting\n3drivers"]

{"sheet":"2. Scan","index":1,"n_rows":51,"n_cols":10,"rows_kept":51,"cut":false,"hidden":false,"merged":[[31,1,31,4],[24,2,24,4],[25,2,25,4],[2,1,2,5],[3,1,3,5],[10,2,10,4],[21,1,21,4],[22,1,22,4]]}
["Scan"]
[]
[null,"Instruções",null,null,null,null,null,null,null,"input do utilizador"]
[null,"1. A folha \"Scan\" permite aos utilizadores fazer uma análise simplificada dos potenciais modelos de recolha de biorresíduos.\n2. Os utilizadores começam por introduzir o seu objetivo de recolha de biorresíduos, a população e o número de alojamentos (\"Parâmetros essenciais\").\n3. Em seguida, os utilizadores fornecem o acesso existente aos sistemas de recolha seletiva (porta-a-porta, coletivo < 200 m e sacos óticos) e algumas perguntas de sim/não.\n4. Os resultados, incluindo as recomendações, a taxa de recolha prevista e os custos, são apresentados no final, nas caixas verdes.",null,null,null,null,null,null,null,"cálculo intermédio"]
[null,null,null,null,null,null,null,null,null,"resultados"]
[null,"Parâmetros essenciais"]
[null,"Objectivo da taxa de recolha de biorresíduos (%gerados)",0.5]
[null,"População",29538]
[null,"Alojamentos",22129]
[]
[null,null,"Quantos alojamentos já têm acesso à recolha de RU através de…"]
[null,"Quantos alojamentos existem em…","Recolha PaP","Coletiva (<200 m)","Sacos óticos","Total"]
[null,"Áreas urbanas densas",0,0,0,{"$f":"SUM(C13:E13)","v":0}]
[null,"Áreas urbanas dispersas",5000,0,0,{"$f":"SUM(C14:E14)","v":5000}]
[null,"Comunidades rurais",0,{"$f":"22129-5000","v":17129},0,{"$f":"SUM(C15:E15)","v":17129}]
[null,"Total",{"$f":"SUM(C13:C15)","v":5000},{"$f":"SUM(D13:D15)","v":17129},0,{"$f":"IF(SUM(F13:F15)=C9,SUM(F13:F15),\"ERRO - por favor, reveja esta informação, este total deve corresponder ao total de alojamentos no Município anteriormente inserido\")","v":22129}]
[]
[null,null,"Sim/Não"]
[null,"A empresa regional tem capacidade para classificar os sacos por cor?","Não"]
[null,"A empresa de tratamento de resíduos dispõe de instalações de DA ou de compostagem?","Digestão anaeróbia"]
[]
[null,"Recomendações"]
[null,{"$f":"_xlfn.TEXTJOIN(\" \",TRUE,IF($D$35:$D$41=1,$C$35:$C$41,\"\"))","v":"As soluções de compostagem local são recomendadas devido ao carácter rural do território. Os biorresíduos podem ser facilmente integrados no actual modelo PaP."}]
[]
[null,"Taxa de recolha de biorresíduos (%gerados)"]
[null,{"$f":"'3B. Modelação da Recolha'!D35","v":0.50648696280898364},{"$f":"IF(B26<C7, \"Não é possível atingir o objectivo com as opções escolhidas. Por favor, reinicie e considere a possibilidade de reduzir o seu objectivo, aumentar o âmbito geográfico ou...\", \"\")","v":""}]
[]
[null,"Custo líquido do sistema de recolha"]
[null,"Custo por tonelada",{"$f":"'3C. Análise de CB'!D40","v":130.80636089981465}]
[null,"Custo por alojamento servido",{"$f":"'3C. Análise de CB'!D39","v":13.62682452889873}]
[]
[null,"Cálculos auxiliares | Critérios"]
[]
[null,"Recomendação n.º","Recomendações","Verificação"]
[null,"R0","As soluções compostagem local são recomendadas devido à falta de economias de escala. Verificar se os alojamentos têm espaço suficiente e se estão dispostos a efetuar a compostagem.",{"$f":"IF(F16<=4000,1,0)","v":0}]
[null,"R1","As soluções de compostagem local são recomendadas devido ao carácter rural do território.",{"$f":"IF(D35, 0, IF(F15/F16>0.5,1,0))","v":1}]
[null,"R2","Os biorresíduos podem ser facilmente integrados no actual modelo PaP.",{"$f":"IF(C16/F16>0.1,1,0)","v":1}]
[null,"R3","Um modelo de co-colecção é adequado se a empresa regional puder separar os sacos por cor, utilizando, por exemplo, o sistema de sacos óticos. Trata-se de um modelo rentável para aumentar a recolha de biorresíduos.",{"$f":"IF(C19=\"Yes\",1,0)","v":0}]
[null,"R4","Recomenda-se a recolha através de pontos de proximidade, uma vez que a recolha porta-a-porta ainda não está implementada, mas a elevada densidade populacional pode justificar uma recolha dedicada.",{"$f":"IF(SUM(C44:C45)=F16,0,IF((D14+D13)>4000,1,0))","v":0}]
[null,"R5","(novos critérios)"]
[null,"R9","Existem poucas opções disponíveis devido à falta de escala. É favor considerar a possibilidade de trabalhar a uma escala mais alargada, por exemplo, assumindo uma abordagem regional, i.e. trabalhando com outros municípios.",{"$f":"IF(SUM(D36:D40), 0, 1)","v":0}]
[]
[null,"Sistema baseado nas recomendações"]
[null,"Compostores domésticos",{"$f":"IF(D36=1,F15,0)","v":17129}]
[null,"Porta-a-Porta",{"$f":"IF(D37=1,C16,0)","v":5000}]
[null,"Coletivo (contentores na via pública)",{"$f":"IF(D39=1,F16-SUM(C44:C45),0)","v":0}]
[null,"N.º contentores na via pública necessários",{"$f":"ROUNDUP(C46/'5. Pressupostos'!D8,0)","v":0}]
[null,"Sacos óticos",{"$f":"IF(D38=1,SUM(E13:E15),0)","v":0}]
[null,"Recolha de resíduos alimentares - recursos afetados"]
[null,"Veículos",{"$f":"ROUNDUP((C45*'5. Pressupostos'!C7)/('5. Pressupostos'!C9*'5. Pressupostos'!C10*'5. Pressupostos'!C11)+(C47*'5. Pressupostos'!D7)/('5. Pressupostos'!D9*'5. Pressupostos'!D10*'5. Pressupostos'!D11),0)","v":4}]
[null,"Equipas (1 condutor + 2 operadores)",{"$f":"C50*2","v":8}]

{"sheet":"3A. Input","index":2,"n_rows":35,"n_cols":11,"rows_kept":35,"cut":false,"hidden":false,"merged":[]}
["Informações da Autoridade Local"]
[]
[null,"Nome da Autoridade Local",null,"Município 1"]
[null,null,null,null,null,null,null,null,null,null,"input do utilizador"]
[null,"Dados demográficos",null,null,null,null,null,null,null,null,"cálculos intermediários"]
[null,"População","hab.",29538,null,null,null,null,null,null,"resultados"]
[null,"Densidade populacional","hab/km2",17]
[null,"Alojamentos","aloj.",22129]
[]
[null,"Produção de RU"]
[null,"RU gerados anualmente","t/ano",15695]
[null,"Proporção de resíduos alimentares presentes nos RU","%",0.28999999999999998]
[]
[null,"Resíduos alimentares produzidos anualmente","t/ano",{"$f":"D11*D12","v":4551.5499999999993}]
[null,"Resíduos alimentares produzidos anualmente por alojamento","kg/aloj./ano",{"$f":"(D14)/D8*1000","v":205.68258845858372}]
[]
[null,"Tratamento de RU"]
[null,"Solução de tratamento para a fração resto",null,"Incineração"]
[null,"Solução de tratamento para biorresíduos",null,"Digestão anaeróbia"]
[]
[]
[null,"TGR","€/t",{"$f":"IF(D18=\"Aterro\",45,35)","v":35}]
[null,"Tarifa em alta aplicada aos biorresíduos","€/t",0]
[]
[null,"TGR","€/t",{"$f":"IF(D18=\"Incineração\",'5. Pressupostos'!C40*_xlfn.IFS('3B. Modelação da Recolha'!D36<'5. Pressupostos'!B46,'5. Pressupostos'!E40,(AND('3B. Modelação da Recolha'!D36>='5. Pressupostos'!B46,'3B. Modelação da Recolha'!D36,'3B. Modelação da Recolha'!D36<'5. Pressupostos'!B47)),('5. Pressupostos'!E40-'5. Pressupostos'!D46),AND('3B. Modelação da Recolha'!D36>='5. Pressupostos'!B47,'3B. Modelação da Recolha'!D36<'5. Pressupostos'!B48),('5. Pressupostos'!E40-'5. Pressupostos'!D47),'3B. Modelação da Recolha'!D36>='5. Pressupostos'!B48,('5. Pressupostos'!E40-'5. Pressupostos'!D48)),0)+IF(D18=\"Aterro\",'5. Pressupostos'!C40*_xlfn.IFS('3B. Modelação da Recolha'!D36<'5. Pressupostos'!B46,'5. Pressupostos'!D40,(AND('3B. Modelação da Recolha'!D36>='5. Pressupostos'!B46,'3B. Modelação da Recolha'!D36,'3B. Modelação da Recolha'!D36<'5. Pressupostos'!B47)),('5. Pressupostos'!D40-'5. Pressupostos'!C46),AND('3B. Modelação da Recolha'!D36>='5. Pressupostos'!B47,'3B. Modelação da Recolha'!D36<'5. Pressupostos'!B48),('5. Pressupostos'!D40-'5. Pressupostos'!C47),'3B. Modelação da Recolha'!D36>='5. Pressupostos'!B48,('5. Pressupostos'!D40-'5. Pressupostos'!C48)))","v":4.375}]
[]
[null,"Benefícios financeiros da recolha de RA","€/t",0]
[]
[]
[null,"Se pretende analisar uma solução alternativa para a recolha de resíduos alimentares, preencha as seguintes informações:"]
[null,"Número de alojamentos a serem servidos por...."]
[null,"Recolha porta-a-porta","aloj.",0]
[null,"Recolha coletiva (contentores na via pública)","aloj.",0]
[null,"Sistema por sacos óticos","aloj.",0]
[null,"Soluções de compostagem local","aloj.",22129]

{"sheet":"3B. Modelação da Recolha","index":3,"n_rows":36,"n_cols":5,"rows_kept":36,"cut":false,"hidden":false,"merged":[]}
["Modelação da recolha selectiva de resíduos alimentares"]
[]
[null,null,null,"CENÁRIO SCAN","CENÁRIO DO UTILIZADOR"]
[null,"Modelo de recolha (a implementar)"]
[null,"Número de alojamentos que beneficiam do serviço de recolha de resíduos alimentares"]
[null,"Porta-a-porta","aloj. servidos",{"$f":"'2. Scan'!C45","v":5000},{"$f":"'3A. Input'!D32","v":0}]
[null,"Coletivo (contentores na via pública)","aloj. servidos",{"$f":"'2. Scan'!C46","v":0},{"$f":"'3A. Input'!D33","v":0}]
[null,"Sistema por sacos óticos","aloj. servidos",{"$f":"'2. Scan'!C48","v":0},{"$f":"'3A. Input'!D34","v":0}]
[null,"Compostagem local","aloj. servidos",{"$f":"'2. Scan'!C44","v":17129},{"$f":"'3A. Input'!D35","v":22129}]
[null,"TOTAL","aloj. servidos",{"$f":"SUM(D6:D9)","v":22129},{"$f":"SUM(E6:E9)","v":22129}]
[]
[null,"Tencionam fornecer sacos para baldes de cozinha gratuitamente?",null,"Sim","Sim"]
[null,"Em caso afirmativo, quantos por alojamento por semana?","n.º/aloj./sem.",3,3]
[]
[null,"Equipamentos e Recursos"]
[null,"Número de contentores necessários"]
[null,"Porta-a-porta (contentor de 30L)","n.º",{"$f":"ROUND(D6/'5. Pressupostos'!$C$8,0)","v":5000},{"$f":"ROUND(E6/'5. Pressupostos'!$C$8,0)","v":0}]
[null,"Contentores de recolha coletiva (120-240L bin)","n.º",{"$f":"ROUNDUP(D7/'5. Pressupostos'!$D$8,0)","v":0},{"$f":"ROUNDUP(E7/'5. Pressupostos'!$D$8,0)","v":0}]
[null,"Contentores para sacos óticos (contentor de 1100L)","n.º",{"$f":"ROUNDUP(D8/'5. Pressupostos'!$E$8,0)","v":0},{"$f":"ROUNDUP(E8/'5. Pressupostos'!$E$8,0)","v":0}]
[null,"Baldes de cozinha","n.º",{"$f":"D10","v":22129},{"$f":"E10","v":22129}]
[null,"Sacos para baldes de cozinha","n.º/ano",{"$f":"IF(D12=\"Yes\",SUM(D6:D7,D9:D9)*D13*52,0)","v":0},{"$f":"IF(E12=\"Yes\",SUM(E6:E7,E9:E9)*E13*52,0)","v":0}]
[null,"Sacos óticos","n.º/ano",{"$f":"D8*'5. Pressupostos'!E7*52","v":0},{"$f":"E8*'5. Pressupostos'!E7*52","v":0}]
[null,"Contentores para compostagem local","n.º",{"$f":"D9","v":17129},{"$f":"E9","v":22129}]
[]
[null,"Alocação de recursos"]
[null,"Circuitos diários necessários","n.º",{"$f":"(D17*'5. Pressupostos'!$C$7/('5. Pressupostos'!$C$9*'5. Pressupostos'!$C$10))+((D18*'5. Pressupostos'!$D$7/('5. Pressupostos'!$D$9*'5. Pressupostos'!$D$10)))+(((D8/'5. Pressupostos'!$E$8)*'5. Pressupostos'!$E$7)/('5. Pressupostos'!$E$9*'5. Pressupostos'!$E$10*'5. Pressupostos'!$E$11))*0.5","v":6.666666666666667},{"$f":"(E17*'5. Pressupostos'!$C$7/('5. Pressupostos'!$C$9*'5. Pressupostos'!$C$10))+((E18*'5. Pressupostos'!$D$7/('5. Pressupostos'!$D$9*'5. Pressupostos'!$D$10)))+((E19*'5. Pressupostos'!$E$7)/('5. Pressupostos'!$E$9*'5. Pressupostos'!$E$10*'5. Pressupostos'!$E$11))*0.5","v":0}]
[null,"Veículos - Camião de 19 Ton","n.º",{"$f":"ROUNDUP(D26/'5. Pressupostos'!$C$11,0)","v":4},{"$f":"ROUNDUP(E26/'5. Pressupostos'!$C$11,0)","v":0}]
[null,"Equipas (1 condutor + 2 operadores)","n.º",{"$f":"D26*1.2","v":8},{"$f":"E26*1.2","v":0}]
[null,"Operador de monitorização de compostagem local","n.º",{"$f":"((D23*'5. Pressupostos'!$F$14)/('5. Pressupostos'!$F$16*'5. Pressupostos'!$F$10*50))","v":22.838666666666665},{"$f":"((E23*'5. Pressupostos'!$F$14)/('5. Pressupostos'!$F$16*'5. Pressupostos'!$F$10*50))","v":29.505333333333333}]
[]
[null,"Taxa de valorização de resíduos alimentares atingida"]
[null,"Resíduos alimentares recolhidos","t/ano",{"$f":"(D6*'5. Pressupostos'!$C$6+D7*'5. Pressupostos'!$D$6+D8*'5. Pressupostos'!$E$6)*'3A. Input'!$D$15/1000","v":719.88905960504303},{"$f":"(E6*'5. Pressupostos'!$C$6+E7*'5. Pressupostos'!$D$6+E8*'5. Pressupostos'!$E$6)*'3A. Input'!$D$15/1000","v":0}]
[null,"Resíduos alimentares compostados localmente","t/ano",{"$f":"+(D9*'5. Pressupostos'!$F$6)*'3A. Input'!$D$15/1000","v":1585.4116759681863},{"$f":"+(E9*'5. Pressupostos'!$F$6)*'3A. Input'!$D$15/1000","v":2048.1974999999998}]
[null,"Total de resíduos alimentares recuperados","t/ano",{"$f":"SUM(D32:D33)","v":2305.3007355732293},{"$f":"SUM(E32:E33)","v":2048.1974999999998}]
[null,"Taxa de captura","%",{"$f":"D34/('3A. Input'!$D$14)","v":0.50648696280898364},{"$f":"E34/('3A. Input'!$D$14)","v":0.45}]
[null,"Contribuição para a taxa de PRR","%",{"$f":"D34/'3A. Input'!$D$11","v":0.14688121921460526},{"$f":"E34/'3A. Input'!$D$11","v":0.13049999999999998}]

{"sheet":"3C. Análise de CB","index":4,"n_rows":51,"n_cols":5,"rows_kept":51,"cut":false,"hidden":false,"merged":[]}
["Análise de custo-benefício"]
[]
[null,null,null,"CENÁRIO SCAN ","CENÁRIO DO UTILIZADOR"]
[null,"CAPEX"]
[null,"Contentores","€",{"$f":"'3B. Modelação da Recolha'!D17*'5. Pressupostos'!$C$22+'3B. Modelação da Recolha'!D18*'5. Pressupostos'!$C$23+'3B. Modelação da Recolha'!D19*'5. Pressupostos'!$C$24*0.5+'3B. Modelação da Recolha'!D20*'5. Pressupostos'!$C$25+'3B. Modelação da Recolha'!D18*'5. Pressupostos'!$C$27+'3B. Modelação da Recolha'!D23*'5. Pressupostos'!$C$28","v":1006450},{"$f":"'3B. Modelação da Recolha'!E17*'5. Pressupostos'!$C$22+'3B. Modelação da Recolha'!E18*'5. Pressupostos'!$C$23+'3B. Modelação da Recolha'!E19*'5. Pressupostos'!$C$24*0.5+'3B. Modelação da Recolha'!E20*'5. Pressupostos'!$C$25+'3B. Modelação da Recolha'!E18*'5. Pressupostos'!$C$27+'3B. Modelação da Recolha'!E23*'5. Pressupostos'!$C$28","v":1106450}]
[null,"Veículos","€",{"$f":"'5. Pressupostos'!$C$31*'3B. Modelação da Recolha'!D27","v":560000},{"$f":"'5. Pressupostos'!$C$31*'3B. Modelação da Recolha'!E27","v":0}]
[null,"CAPEX","€",{"$f":"SUM(D5:D6)","v":1566450},{"$f":"SUM(E5:E6)","v":1106450}]
[null,null,"€/aloj. Servidos",{"$f":"D7/('3B. Modelação da Recolha'!D10)","v":70.78720231370599},{"$f":"E7/('3B. Modelação da Recolha'!E10)","v":50}]
[null,"Investimento anualizado","€",{"$f":"(D5/'5. Pressupostos'!$J$42)+('3C. Análise de CB'!D6/'5. Pressupostos'!$J$43)","v":257290},{"$f":"(E5/'5. Pressupostos'!$J$42)+('3C. Análise de CB'!E6/'5. Pressupostos'!$J$43)","v":221290}]
[]
[null,"OPEX"]
[null,"Contentores","€/ano",{"$f":"'3B. Modelação da Recolha'!D17*'5. Pressupostos'!$E$22+'3B. Modelação da Recolha'!D18*'5. Pressupostos'!$E$23+'3B. Modelação da Recolha'!D19*'5. Pressupostos'!$E$23*0.5+'3B. Modelação da Recolha'!D20*'5. Pressupostos'!$E$25+'3B. Modelação da Recolha'!D18*'5. Pressupostos'!$E$27+'3B. Modelação da Recolha'!D23*'5. Pressupostos'!$E$28","v":30193.5},{"$f":"'3B. Modelação da Recolha'!E17*'5. Pressupostos'!$E$22+'3B. Modelação da Recolha'!E18*'5. Pressupostos'!$E$23+'3B. Modelação da Recolha'!E19*'5. Pressupostos'!$E$24*0.5+'3B. Modelação da Recolha'!E20*'5. Pressupostos'!$E$25+'3B. Modelação da Recolha'!E18*'5. Pressupostos'!$E$27+'3B. Modelação da Recolha'!E23*'5. Pressupostos'!$E$28","v":33193.5}]
[null,"Sacos para baldes de cozinha","€/ano",{"$f":"'3B. Modelação da Recolha'!D21*('5. Pressupostos'!$C$26+'5. Pressupostos'!$E$33)","v":0},{"$f":"'3B. Modelação da Recolha'!E21*('5. Pressupostos'!$C$26+'5. Pressupostos'!$E$33)","v":0}]
[null,"Sacos óticos","€/ano",{"$f":"'3B. Modelação da Recolha'!D22*('5. Pressupostos'!$C$26+'5. Pressupostos'!$E$33)","v":0},{"$f":"'3B. Modelação da Recolha'!E22*('5. Pressupostos'!$C$26+'5. Pressupostos'!$E$33)","v":0}]
[null,"RH","€/ano",{"$f":"'3B. Modelação da Recolha'!D28*'5. Pressupostos'!$E$30+'3B. Modelação da Recolha'!D29*'5. Pressupostos'!$E$30","v":555096},{"$f":"'3B. Modelação da Recolha'!E28*'5. Pressupostos'!$E$30+'3B. Modelação da Recolha'!E29*'5. Pressupostos'!$E$30","v":531096}]
[null,"Fiscalização","€/ano",{"$f":"'5. Pressupostos'!E34*D9","v":12864.5},{"$f":"'5. Pressupostos'!E34*E9","v":11064.5}]
[null,"Veículos","€/ano",{"$f":"'3B. Modelação da Recolha'!D27*'5. Pressupostos'!$E$31+'5. Pressupostos'!$C$13*'3B. Modelação da Recolha'!D34*'5. Pressupostos'!$E$32","v":94243.119860477193},{"$f":"'3B. Modelação da Recolha'!E27*'5. Pressupostos'!$E$31+'5. Pressupostos'!$C$13*'3B. Modelação da Recolha'!E34*'5. Pressupostos'!$E$32","v":55301.332499999997}]
[null,"CUSTOS DE RECOLHA","€/ano",{"$f":"SUM(D12:D17)","v":692397.11986047716},{"$f":"SUM(E12:E17)","v":630655.33250000002}]
[null,null,"€/aloj. servido",{"$f":"D18/'3B. Modelação da Recolha'!D10","v":31.289128286884957},{"$f":"E18/'3B. Modelação da Recolha'!E10","v":28.499043449771793}]
[]
[null,"Tarifa em alta aplicada aos biorresíduos","€/ano",{"$f":"'3B. Modelação da Recolha'!D34*'3A. Input'!$D$23","v":0},{"$f":"'3B. Modelação da Recolha'!E34*'3A. Input'!$D$23","v":0}]
[null,"CUSTOS DE TRATAMENTO","€/ano",{"$f":"SUM(D21:D21)","v":0},{"$f":"SUM(E21:E21)","v":0}]
[null,null,"€/aloj. servido",{"$f":"D22/'3B. Modelação da Recolha'!D10","v":0},{"$f":"E22/'3B. Modelação da Recolha'!E10","v":0}]
[]
[null,"CUSTOS DE COMUNICAÇÃO","€/ano",{"$f":"'5. Pressupostos'!$E$21*'3B. Modelação da Recolha'!D10","v":44258},{"$f":"'5. Pressupostos'!$E$21*'3B. Modelação da Recolha'!E10","v":44258}]
[]
[null,"OPEX","€/ano",{"$f":"D22+D25","v":44258},{"$f":"E22+E25","v":44258}]
[null,null,"€/aloj. Servido",{"$f":"D27/'3B. Modelação da Recolha'!D10","v":2},{"$f":"E27/'3B. Modelação da Recolha'!E10","v":2}]
[null,null,"€/t",{"$f":"D27/'3B. Modelação da Recolha'!D34","v":19.198362850040446},{"$f":"E27/'3B. Modelação da Recolha'!E34","v":21.6082677573818}]
[]
[null,"Benefícios"]
[null,"Poupanças resultantes do desvio de resíduos alimentares","€/ano",{"$f":"SUM(D33:D34)","v":90771.216463195917},{"$f":"SUM(E33:E34)","v":80647.776562499988}]
[null,"Tarifa evitada","€/ano",{"$f":"'3B. Modelação da Recolha'!D34*('3A. Input'!$D$22)","v":80685.525745063031},{"$f":"'3B. Modelação da Recolha'!E34*('3A. Input'!$D$22)","v":71686.912499999991}]
[null,"TGR evitada","€/ano",{"$f":"'3B. Modelação da Recolha'!D34*('3A. Input'!$D$25)","v":10085.690718132879},{"$f":"'3B. Modelação da Recolha'!E34*('3A. Input'!$D$25)","v":8960.8640624999989}]
[null,"Vantagens financeiras da recolha de resíduos alimentares","€/ano",{"$f":"'3B. Modelação da Recolha'!D34*'3A. Input'!D27","v":0},{"$f":"'3B. Modelação da Recolha'!E34*'3A. Input'!D27","v":0}]
[]
[]
[null,"Custos líquidos","€/ano",{"$f":"D27+D9","v":301548},{"$f":"E27+E9","v":265548}]
[null,null,"€/(ano x aloj. Servido)",{"$f":"D38/'3B. Modelação da Recolha'!D10","v":13.62682452889873},{"$f":"E38/'3B. Modelação da Recolha'!E10","v":12}]
[null,null,"€/t",{"$f":"D38/'3B. Modelação da Recolha'!D34","v":130.80636089981465},{"$f":"E38/'3B. Modelação da Recolha'!E34","v":129.64960654429078}]
[]
[]
[]
[null,"Impactes ambientais"]
[null,"Recolha de resíduos alimentares","t CO2 eq",{"$f":"'5. Pressupostos'!$C$59*'5. Pressupostos'!$C$13*'3B. Modelação da Recolha'!D32","v":28.939540196122728},{"$f":"'5. Pressupostos'!$C$59*'5. Pressupostos'!$C$13*'3B. Modelação da Recolha'!E32","v":0}]
[null,"Tratamento de resíduos alimentares","t CO2 eq",{"$f":"IF('3A. Input'!$D$19=\"Digestão anaeróbia\",'3B. Modelação da Recolha'!D32*'5. Pressupostos'!$C$61,'3B. Modelação da Recolha'!D32*'5. Pressupostos'!$C$60)","v":6.4146300612318692},{"$f":"IF('3A. Input'!$D$19=\"Digestão anaeróbia\",'3B. Modelação da Recolha'!E32*'5. Pressupostos'!$C$61,'3B. Modelação da Recolha'!E32*'5. Pressupostos'!$C$60)","v":0}]
[null,"Soluções de compostagem local","t CO2 eq",{"$f":"'3B. Modelação da Recolha'!D33*'5. Pressupostos'!$C$62","v":14.126939783850947},{"$f":"'3B. Modelação da Recolha'!E33*'5. Pressupostos'!$C$62","v":18.250630537500005}]
[]
[null,"Emissões evitadas pelo desvio de resíduos alimentares de aterro","t CO2 eq",{"$f":"IF('3A. Input'!$D$18=\"Aterro\",'3B. Modelação da Recolha'!D34*(-'5. Pressupostos'!$C$64),'3B. Modelação da Recolha'!D34*(-'5. Pressupostos'!$C$63))","v":-49.057246416706732},{"$f":"IF('3A. Input'!$D$18=\"Aterro\",'3B. Modelação da Recolha'!E34*(-'5. Pressupostos'!$C$64),'3B. Modelação da Recolha'!E34*(-'5. Pressupostos'!$C$63))","v":-43.586039737499966}]
[]
[null,"Emissões líquidas","t CO2 eq",{"$f":"SUM(D45:D47)+D49","v":0.42386362449880721},{"$f":"SUM(E45:E47)+E49","v":-25.335409199999962}]

{"sheet":"4. Resultados","index":5,"n_rows":24,"n_cols":5,"rows_kept":24,"cut":false,"hidden":false,"merged":[]}
["Resultados"]
[]
[null,null,null,"CENÁRIO SCAN ","CENÁRIO DO UTILIZADOR"]
[null,"Taxa de valorização de resíduos alimentares atingida"]
[null,"Total de resíduos alimentares recuperados","t/ano",{"$f":"'3B. Modelação da Recolha'!D34","v":2305.3007355732293},{"$f":"'3B. Modelação da Recolha'!E34","v":2048.1974999999998}]
[null,"Taxa de captura","%",{"$f":"'3B. Modelação da Recolha'!D35","v":0.50648696280898364},{"$f":"'3B. Modelação da Recolha'!E35","v":0.45}]
[null,"Diferença para a taxa pretendida","p.p.",{"$f":"(D6-'2. Scan'!$C$7)*100","v":0.64869628089836429},{"$f":"(E6-'2. Scan'!$C$7)*100","v":-4.9999999999999991}]
[null,"Indicadores de eficiência da recolha de resíduos alimentares"]
[null,"Quantidade recolhida por circuito diário","t/circuito",{"$f":"IF('3B. Modelação da Recolha'!D32=0,0,'3B. Modelação da Recolha'!D32/('3B. Modelação da Recolha'!D26*'5. Pressupostos'!$C$10*52))","v":0.41532061131060172},{"$f":"IF('3B. Modelação da Recolha'!E32=0,0,'3B. Modelação da Recolha'!E32/('3B. Modelação da Recolha'!E26*'5. Pressupostos'!$C$10*52))","v":0}]
[null,"Produtividade anual das equipas de recolha","t/equipa.ano",{"$f":"IF('3B. Modelação da Recolha'!D32=0,0,'3B. Modelação da Recolha'!D32/'3B. Modelação da Recolha'!D28)","v":89.986132450630379},{"$f":"IF('3B. Modelação da Recolha'!E32=0,0,'3B. Modelação da Recolha'!E32/'3B. Modelação da Recolha'!E28)","v":0}]
[null,"Produtividade anual dos veículos de recolha","t/veículo.ano",{"$f":"IF('3B. Modelação da Recolha'!D32=0,0,'3B. Modelação da Recolha'!D32/'3B. Modelação da Recolha'!D27)","v":179.97226490126076},{"$f":"IF('3B. Modelação da Recolha'!E32=0,0,'3B. Modelação da Recolha'!E32/'3B. Modelação da Recolha'!E27)","v":0}]
[null,"(…)"]
[]
[null,"Análise custo-benefício"]
[null,"Investimento previsto","€",{"$f":"'3C. Análise de CB'!D7","v":1566450},{"$f":"'3C. Análise de CB'!E7","v":1106450}]
[null,"Custos operacionais por tonelada recuperada","€/t",{"$f":"'3C. Análise de CB'!D29","v":19.198362850040446},{"$f":"'3C. Análise de CB'!E29","v":21.6082677573818}]
[null,"Custos operacionais por alojamento servido","€/aloj. servido",{"$f":"'3C. Análise de CB'!D28","v":2},{"$f":"'3C. Análise de CB'!E28","v":2}]
[null,"Poupança e rendimentos","€/ano",{"$f":"'3C. Análise de CB'!D32+'3C. Análise de CB'!D35","v":90771.216463195917},{"$f":"'3C. Análise de CB'!E32+'3C. Análise de CB'!E35","v":80647.776562499988}]
[null,"Impactes ambientais"]
[null,"Recolha de resíduos alimentares","t CO2 eq",{"$f":"'3C. Análise de CB'!D45","v":28.939540196122728},{"$f":"'3C. Análise de CB'!E45","v":0}]
[null,"Tratamento de resíduos alimentares","t CO2 eq",{"$f":"'3C. Análise de CB'!D46","v":6.4146300612318692},{"$f":"'3C. Análise de CB'!E46","v":0}]
[null,"Soluções de compostagem local","t CO2 eq",{"$f":"'3C. Análise de CB'!D47","v":14.126939783850947},{"$f":"'3C. Análise de CB'!E47","v":18.250630537500005}]
[null,"Emissões evitadas (provenientes do desvio de RA dos RU)","t CO2 eq",{"$f":"'3C. Análise de CB'!D49","v":-49.057246416706732},{"$f":"'3C. Análise de CB'!E49","v":-43.586039737499966}]
[null,"Emissões líquidas","t CO2 eq",{"$f":"SUM(D20:D23)","v":0.42386362449880721},{"$f":"SUM(E20:E23)","v":-25.335409199999962}]

{"sheet":"5. Pressupostos","index":6,"n_rows":65,"n_cols":11,"rows_kept":65,"cut":false,"hidden":false,"merged":[[43,2,43,3]]}
["Pressupostos"]
[]
[null,"Modelação da recolha"]
[]
[null,null,"Porta-a-porta","Coletiva (contentores na via pública)","Sistema de sacos óticos","Compostagem doméstica","Compostagem comunitária","Referências"]
[null,"Taxa de captura max.",0.7,0.5,0.6,0.45,0.45,"Zero waste europe, 2022 &  SPORA (ARCtalunya), 2018 + Zero waste europe, 2020 + Tratolixo, 2020","ZWE (2022). How to best collect bio-waste: Guidance for municipalities on the best performing methods to separately collect bio-waste. (https://zerowastecities.eu/wp-content/uploads/2022/11/How-to-best-collect-bio-waste-EN-Final.pdf)"]
[null,"Frequência (x/semana)",2,3,3,"-","-","pressuposto assumido pela equipa de trabalho","ZWE (20220). Bio-waste generation in the EU: Current capture levels and future potential (https://zerowasteeurope.eu/wp-content/uploads/2020/07/2020_07_06_bic_zwe_report_bio_waste.pdf)"]
[null,"Aloj. por contentor",1,30,10,"-","-","pressuposto assumido pela equipa de trabalho (RASARP | ERSAR - medianas RI: 8,9 | RS: 97 )","SPORA (2018). Guide and experiencies of reference for implementing the selective collection of municipal waste (https://residus.gencat.cat/web/.content/home/lagencia/publicacions/prevencio/guia_experiencies_implantacio_rsrm_en.pdf)"]
[null,"Contentores recolhidos por rota",300,100,100,"-","-","pressuposto assumido pela equipa de trabalho","Tratolixo (2020): Avaliação técnica, económica e ambiental do sistema de recolha seletiva baseado em co-coleção. Disponível em: https://www.tratolixo.pt/assets/docs/Relat%c3%83%c2%b3rio%20Final_anexo%20munic%c3%83%c2%adpios_30.09.2020.pdf "]
[null,"Dias de trabalho por semana",5,5,5,5,5,"pressuposto assumido pela equipa de trabalho"]
[null,"N.º de turnos",2,2,2,"-","-","pressuposto assumido pela equipa de trabalho"]
[null,"Taxas de contaminação",0.06,0.13900000000000001,0.06,"-","-","Zero waste europe, 2022 + Tratolixo, 2020"]
[null,"Combustível (l/t)",15,null,null,"-","-","pressuposto assumido pela equipa de trabalho (RASARP | ERSAR - medianas RI: 6,6 | RS: 24,5 )"]
[null,"Frequência de monitorização (x/ano/contentor)","-","-","-",2,{"$f":"2*52","v":104},"pressuposto assumido pela equipa de trabalho"]
[null,"Aloj. por contentor ","-","-","-",1,30,"pressuposto assumido pela equipa de trabalho"]
[null,"N.º de locais de compostagem monitorizados por dia e por operador","-","-","-",6,4,"pressuposto assumido pela equipa de trabalho"]
[]
[null,"Custo-benefício"]
[]
[null,null,"investimento","investimento anualizado","custos de operação",null,null,"Referências",null,"custos de comunicação"]
[null,"Comunicação (€/aloj.)","-","-",2,null,null,"pressuposto da equipa de trabalho baseado em referências nacionais e europeias",null,"Lipor (0,61€/hab)","estimado de acordo com: https://www.lipor.pt/fotos/editor2/PORTAL_2020/INTERNACIONAL/CASE_STUDY/AF_LIPOR_EN.pdf"]
[null,"Contentor de 30L (€/unidade)",20,{"$f":"C22/(((1-(1/((1+$J$41)^$J$42)))/$J$41))","v":4.4925422698606718},{"$f":"C22*3%","v":0.6},null,null,"pressuposto assumido pela equipa de trabalho baseado emm contratos públicos recentes (Portal Base)",null,"WRAP (1,7€/hh)","https://wrap.org.uk/sites/default/files/2021-10/HH%20food%20waste%20guide%20section%206%202021%20final.pdf"]
[null,"Contentor de 120-240L (€/unidade)",40,{"$f":"C23/(((1-(1/((1+$J$41)^$J$42)))/$J$41))","v":8.9850845397213437},{"$f":"C23*3%+2.7","v":3.9000000000000004},null,null,"pressuposto assumido pela equipa de trabalho baseado em contratos públicos recentes (Portal Base)",null,"Zerowaste Scotland (1€/hh - 2,2€/hh)","https://www.zerowastescotland.org.uk/sites/default/files/Improving%20Recycling%20Through%20Effective%20Communications_ZWS_0.pdf"]
[null,"Contentor de 1100L (€/unidade)",250,{"$f":"C24/(((1-(1/((1+$J$41)^$J$42)))/$J$41))","v":56.156778373258398},{"$f":"C24*3%+2.7","v":10.199999999999999},null,null,"pressuposto assumido pela equipa de trabalho baseado em contratos públicos recentes (Portal Base)"]
[null,"Baldes de cozinha (€/unidade)",10,{"$f":"C25/(((1-(1/((1+$J$41)^$J$42)))/$J$41))","v":2.2462711349303359},{"$f":"C25*3%","v":0.3},null,null,"pressuposto assumido pela equipa de trabalho baseado em contratos públicos recentes (Portal Base)"]
[null,"Sacos para baldes de cozinha e sacos óticos (€/unidade)",0.03,"-","-",null,null,"consulta de mercado"]
[null,"Tecnologias de controlo de acesso (€/contentor)",1300,{"$f":"C27/(((1-(1/((1+$J$41)^$J$42)))/$J$41))","v":292.01524754094368},{"$f":"C27*5%","v":65},null,null,"pressuposto assumido pela equipa de trabalho baseado em contratos públicos recentes (Portal Base)"]
[null,"Contentores de compostagem doméstica (€/unidade)",40,{"$f":"C28/(((1-(1/((1+$J$41)^$J$42)))/$J$41))","v":8.9850845397213437},{"$f":"C28*3%","v":1.2},null,null,"pressuposto assumido pela equipa de trabalho baseado em contratos públicos recentes (Portal Base)"]
[null,"Contentores de compostagem comunitária (€/unidade)",2500,{"$f":"C29/(((1-(1/((1+$J$41)^$J$43)))/$J$41))","v":308.22736082534095},{"$f":"C29*3%","v":75},null,null,"pressuposto assumido pela equipa de trabalho baseado em contratos públicos recentes (Portal Base)"]
[null,"RH (€/FTE)","-","-",{"$f":"(22000+16000*2)/3","v":18000},null,null,"pressuposto assumido pela equipa de trabalho"]
[null,"Veículos (€/veículos)",140000,{"$f":"C31/(((1-(1/((1+$J$41)^$J$43)))/$J$41))","v":17260.732206219094},{"$f":"C31*5%+1000","v":8000},null,null,"pressuposto assumido pela equipa de trabalho baseado emm contratos públicos recentes (Portal Base)"]
[null,"Combustível (€/l)","-","-",1.8,null,null,"pressuposto assumido pela equipa de trabalho"]
[null,"Custos de distribuição de sacos para baldes de cozinha e sacos óticos (€/saco)","-","-",5.0000000000000001E-3,null,null,"Tratolixo, 2020"]
[null,"Custos com fiscalização (% em função do capex)",null,null,0.05]
[]
[]
[null,null,null,null,null,null,null,"Custo equivalente anual"]
[null,null,"TGR","D1","R1"]
[null,2022,22,1,0.2]
[null,2023,25,1,0.2]
[null,2024,30,1,0.2,null,null,null,"r=",0.04]
[null,2025,35,1,0.2,null,null,"contentores","t=",5]
[null,null,null,null,null,null,null,"veículos","t=",10]
[null,null,"Redução da TGR "]
[null,"% biorresíduos recuperados","D1","R1"]
[null,0.05,0.1,2.5000000000000001E-2]
[null,0.15,0.3,5.5E-2]
[null,0.3,0.5,8.5000000000000006E-2]
[]
[]
[null,null,"RE","Incineração"]
[null,"Produção de eletricidade (kWh/t)",330,551]
[null,"preço de exportação da electricidade (€/kWh)",0.1]
[]
[]
[null,"Emissões de CO2 "]
[]
[null,null,"t CO2 eq",null,null,null,null,"Referências"]
[null,"Recolha\n(por litro de combustível)",2.6800000000000001E-3,null,null,null,null,"DEFRA, 2022"]
[null,"Compostagem centralizada\n(por ton de biorresíduos)",{"$f":"8.91058139534884/1000","v":8.9105813953488412E-3},null,null,null,null,"DEFRA, 2022"]
[null,"Digestão Anaeróbia\n(por ton de biorresíduos)",{"$f":"8.91058139534884/1000","v":8.9105813953488412E-3},null,null,null,null,"DEFRA, 2022"]
[null,"Compostagem local\n(por ton de biorresíduos)",{"$f":"8.91058139534884/1000","v":8.9105813953488412E-3},null,null,null,null,"DEFRA, 2022"]
[null,"Incineração\n(por ton de biorresíduos)",{"$f":"21.2801937984496/1000","v":2.1280193798449597E-2},null,null,null,null,"DEFRA, 2022"]
[null,"Aterro\n(por ton de biorresíduos)",{"$f":"626.856145223945/1000","v":0.62685614522394495},null,null,null,null,"DEFRA, 2022"]
[null,null,null,null,null,null,null,"DEFRA (2022). Greenhouse gas reporting: Conversion factors 2022 (https://www.gov.uk/government/publications/greenhouse-gas-reporting-conversion-factors-2022)"]

{"sheet":"Listas","index":7,"n_rows":3,"n_cols":4,"rows_kept":3,"cut":false,"hidden":true,"merged":[]}
[null,"Solução de tratamento para a fração resto","Solução de tratamento de biorresíduos","S/N"]
[null,"Incineração","Compostagem (centralizada)","Sim"]
[null,"Aterro","Digestão anaeróbia","Não"]